bitfinex-derivatives/quotes_SOLF0:USTF0_20250228
["timestamp","ask_amount","ask_price","bid_price","bid_amount"]
[1740729447191,0.0574714,128.47,128.44,0.05310187]
[1740729447394,3.934,128.53,128.38,1.9364]
[1740729447590,7.7934,128.46,128.44,0.05570459]
[1740729447790,0.05474938,128.47,128.38,1.9364]
[1740729447996,0.05757412,128.46,128.44,0.04921105]
[1740729448196,0.05757412,128.46,128.38,1.9364]
[1740729448396,1.39128125,128.51,128.44,0.05777232]
[1740729448591,0.05918473,128.49,128.38,1.9364]
[1740729448797,13.84,128.49,128.35,3.8647]
[1740729448996,1.39128125,128.48,128.35,3.8647]
[1740729449299,1.39128125,128.48,128.35,11.6641]
[1740729449500,2.0027,128.47,128.35,11.6641]
[1740729449692,7.7964,128.41,128.4,0.0584403]
[1740729449894,0.05073098,128.43,128.4,0.0584403]
[1740729451698,0.05073098,128.43,128.42,7.7953]
[1740729451898,7.7911,128.49,128.41,5.8394]
[1740729452399,1.55629912,128.51,128.41,5.8394]
[1740729452597,1.9454,128.53,128.41,5.8394]
[1740729452800,7.7898,128.52,128.46,7.7925]
[1740729452996,0.05298725,128.48,128.46,0.05905813]
[1740729453196,1.9454,128.53,128.46,0.05905813]
[1740729454404,0.05758208,128.51,128.46,0.05905813]
[1740729454604,0.05758208,128.51,128.45,13.84]
[1740729454898,1.8768,128.59,128.47,0.05128937]
[1740729455104,7.7863,128.57,128.51,7.7898]
[1740729455596,1.8768,128.59,128.45,13.84]
[1740729455998,0.05945012,128.53,128.51,0.0577508]
[1740729456398,0.05399391,128.53,128.45,13.84]
[1740729456600,9.7228,128.58,128.52,7.7887]
[1740729457002,0.0578497,128.56,128.52,7.7887]
[1740729457204,0.0578497,128.56,128.54,0.0553502]
[1740729457795,7.7874,128.55,128.54,0.0553502]
[1740729458398,0.0578497,128.56,128.54,0.0553502]
[1740729458706,7.8447497,128.56,128.54,0.0553502]
[1740729459308,0.0578497,128.56,128.54,0.0553502]
[1740729460509,0.0578497,128.56,128.55,7.7874]
[1740729460710,0.0578497,128.56,128.54,0.0553502]
[1740729463407,7.8446497,128.56,128.54,0.0553502]
[1740729464115,0.0578497,128.56,128.54,0.0553502]
[1740729464314,0.0578497,128.56,128.54,7.8432502]
[1740729464714,0.0578497,128.56,128.54,0.0553502]
[1740729465414,0.0578497,128.56,128.5,7.7903]
[1740729465615,1.8768,128.59,128.5,7.7903]
[1740729465807,1.8768,128.59,128.42,211.96]
[1740729466006,7.7896,128.52,128.47,7.7919]
[1740729466213,7.7896,128.52,128.42,225.78]
[1740729466515,7.7896,128.52,128.47,7.7917]
[1740729466711,0.05284976,128.48,128.47,7.7917]
[1740729466911,7.7896,128.52,128.46,0.05620672]
[1740729467112,0.05473111,128.49,128.48,7.7916]
[1740729467309,1.8768,128.59,128.42,211.96]
[1740729468418,7.787,128.56,128.52,7.7892]
[1740729468815,0.0582225,128.55,128.52,7.7892]
[1740729469013,0.0582225,128.55,128.53,0.05252973]
[1740729469216,7.8461225,128.55,128.53,0.05252973]
[1740729469615,0.0582225,128.55,128.53,0.05252973]
[1740729470215,7.788,128.54,128.53,0.05252973]
[1740729474219,0.0582225,128.55,128.53,0.05252973]
[1740729474420,7.8458225,128.55,128.53,0.05252973]
[1740729475518,0.0582225,128.55,128.53,0.05252973]
[1740729480020,0.0582225,128.55,128.54,7.788]
[1740729480228,2.25e-05,128.55,128.54,7.788]
[1740729482424,2.25e-05,128.55,128.53,0.05252973]
[1740729483529,7.7874225,128.55,128.53,0.05252973]
[1740729485737,7.788,128.54,128.53,0.05252973]
[1740729487433,7.7897,128.52,128.41,45.85747614]
[1740729487633,7.7897,128.52,128.45,1.9186]
[1740729487933,7.7897,128.52,128.48,7.7913]
[1740729488330,7.7885,128.54,128.45,1.9186]
[1740729488634,0.05003097,128.51,128.49,0.04945784]
[1740729488829,7.789,128.53,128.45,1.9186]
[1740729489030,0.05619533,128.51,128.49,0.0585314]
[1740729489731,0.05619533,128.51,128.49,7.8492314]
[1740729490229,0.05619533,128.51,128.49,0.0585314]
[1740729491430,13.82,128.59,128.49,0.0585314]
[1740729491636,13.82,128.59,128.45,1.9186]
[1740729492236,37.33,128.59,128.45,1.9186]
[1740729492536,0.04788345,128.53,128.51,0.0583441]
[1740729492730,0.04788345,128.53,128.45,1.9186]
[1740729493038,2.013,128.58,128.51,0.05973853]
[1740729493338,8.345e-05,128.5,128.45,1.9186]
[1740729493534,2.013,128.58,128.45,1.9186]
[1740729493733,7.7872,128.56,128.52,7.7891]
[1740729494535,7.7872,128.56,128.53,0.05374656]
[1740729494831,7.7872,128.56,128.45,1.9186]
[1740729495033,2.013,128.58,128.53,0.05116236]
[1740729495236,43.70341814,128.61,128.54,0.05760299]
[1740729495534,43.77901814,128.61,128.49,1.96]
[1740729495838,43.77901814,128.61,128.56,0.05517712]
[1740729495839,41.76601814,128.61,128.56,0.05517712]
[1740729496134,38.68461814,128.61,128.6,7.7844]
[1740729496335,77.37385445,128.62,128.57,1.857]
[1740729496637,52.19742572,128.63,128.59,0.05232524]
[1740729496938,46.05992572,128.63,128.59,0.05232524]
[1740729500336,53.84262572,128.63,128.59,0.05232524]
[1740729500536,1.886,128.63,128.59,0.05232524]
[1740729500732,9.6687,128.63,128.59,0.05232524]
[1740729500934,1.886,128.63,128.59,0.05232524]
[1740729501943,7.7844,128.6,128.59,0.05232524]
[1740729502447,1.886,128.63,128.53,32.03747614]
[1740729502742,7.7869,128.56,128.53,32.03747614]
[1740729502944,1.886,128.63,128.53,32.03747614]
[1740729503642,7.785,128.59,128.53,32.03747614]
[1740729503843,7.83740869,128.59,128.57,0.05151128]
[1740729504041,7.785,128.59,128.52,7.789]
[1740729504343,7.7856,128.58,128.57,0.05229228]
[1740729504641,1.886,128.63,128.56,0.05563405]
[1740729504837,7.7858,128.58,128.51,7.7898]
[1740729505037,7.7858,128.58,128.52,7.7892]
[1740729505234,0.05240869,128.55,128.52,7.84645462]
[1740729505544,0.05240869,128.55,128.52,0.05725462]
[1740729506550,0.05240869,128.55,128.52,7.84635462]
[1740729506844,0.05240869,128.55,128.52,0.05725462]
[1740729507439,0.05240869,128.55,128.52,7.84645462]
[1740729507639,7.7858,128.58,128.52,7.84645462]
[1740729507834,7.7846,128.6,128.54,7.7879]
[1740729508142,1.886,128.63,128.49,1.8583]
[1740729508344,1.886,128.63,128.49,196.8583]
[1740729508539,1.886,128.63,128.55,7.787]
[1740729508540,7.7842,128.61,128.55,7.787]
[1740729508741,1.886,128.63,128.57,0.05887794]
[1740729508940,7.7841,128.61,128.57,0.05887794]
[1740729509136,1.9539,128.64,128.57,0.05887794]
[1740729509340,1.9188,128.68,128.57,0.05887794]
[1740729509540,1.9188,128.68,128.55,13.8]
[1740729509735,1.9188,128.68,128.61,0.05651287]
[1740729510142,7.7804,128.67,128.61,0.05651287]
[1740729510346,1.9188,128.68,128.61,0.05651287]
[1740729510743,7.7805,128.67,128.61,0.05651287]
[1740729510943,1.9188,128.68,128.61,0.05651287]
[1740729511249,7.7832,128.62,128.61,0.05651287]
[1740729511448,7.7832,128.62,128.53,13.8]
[1740729511643,7.7832,128.62,128.49,117.47074585]
[1740729511844,1.9188,128.68,128.5,13.8]
[1740729512044,7.7828,128.63,128.5,13.8]
[1740729512349,1.9188,128.68,128.53,7.7885]
[1740729512551,7.7842,128.61,128.53,7.7885]
[1740729512751,1.9515,128.62,128.5,13.8]
[1740729512752,2.00801287,128.62,128.59,0.05542755]
[1740729513048,7.7844,128.6,128.52,7.7889]
[1740729513241,1.9973,128.61,128.52,7.7889]
[1740729513844,1.9973,128.61,128.51,1.9093]
[1740729514145,0.05304745,128.58,128.55,0.05989224]
[1740729514351,7.7866,128.57,128.55,0.05989224]
[1740729515248,7.7868,128.56,128.55,0.05989224]
[1740729515847,7.7868,128.56,128.49,7.7907]
[1740729516147,191.9973,128.61,128.47,9.6499]
[1740729516352,1.9906,128.55,128.47,7.7918]
[1740729516547,1.9906,128.55,128.48,7.7912]
[1740729516746,1.9906,128.55,128.44,33.89557614]
[1740729517254,0.05743704,128.51,128.48,0.05864808]
[1740729518047,0.05743704,128.51,128.49,7.7911]
[1740729518347,0.05743704,128.51,128.48,0.05864808]
[1740729518643,0.05743704,128.51,128.48,7.85024808]
[1740729518848,0.05743704,128.51,128.48,0.05864808]
[1740729519252,0.05743704,128.51,128.49,7.7906]
[1740729519453,0.05743704,128.51,128.48,0.05864808]
[1740729520555,0.05743704,128.51,128.49,7.7911]
[1740729520757,0.05743704,128.51,128.48,0.05864808]
[1740729522552,0.05743704,128.51,128.4,331.19294585]
[1740729522866,3.8617,128.54,128.4,211.7]
[1740729523369,7.7921,128.48,128.43,7.7943]
[1740729523666,3.9263,128.47,128.39,32.03747614]
[1740729523867,3.98413145,128.47,128.45,7.7933]
[1740729524067,3.9263,128.47,128.44,0.05539558]
[1740729524260,3.97817208,128.47,128.44,0.05539558]
[1740729524464,3.97817208,128.47,128.39,32.03747614]
[1740729524665,3.9263,128.47,128.39,32.03747614]
[1740729525374,3.9263,128.47,128.36,214.6427535]
[1740729525375,3.9263,128.47,128.36,13.8]
[1740729525763,0.05343058,128.43,128.42,7.7953]
[1740729525965,3.9263,128.47,128.36,13.8]
[1740729526167,0.05973449,128.44,128.41,0.05078137]
[1740729526564,3.449e-05,128.44,128.43,7.7947]
[1740729528665,3.449e-05,128.44,128.41,0.05078137]
[1740729529369,3.449e-05,128.44,128.41,7.84658137]
[1740729529870,3.449e-05,128.44,128.41,0.05078137]
[1740729530467,3.449e-05,128.44,128.43,7.7947]
[1740729536073,3.449e-05,128.44,128.41,0.05078137]
[1740729536375,3.449e-05,128.44,128.43,7.7947]
[1740729537272,3.449e-05,128.44,128.43,11.6947]
[1740729538472,3.449e-05,128.44,128.43,7.7947]
[1740729542874,3.449e-05,128.44,128.42,7.795]
[1740729543072,3.449e-05,128.44,128.41,0.05078137]
[1740729543675,3.449e-05,128.44,128.43,7.7947]
[1740729545868,3.449e-05,128.44,128.41,0.05078137]
[1740729546067,3.449e-05,128.44,128.42,7.7951]
[1740729546269,3.449e-05,128.44,128.41,0.05078137]
[1740729546475,3.449e-05,128.44,128.42,7.7953]
[1740729547275,3.449e-05,128.44,128.43,7.7947]
[1740729548375,3.449e-05,128.44,128.41,0.05078137]
[1740729548882,3.449e-05,128.44,128.41,3.95078137]
[1740729549180,5.8418,128.55,128.49,7.791]
[1740729550075,0.05987343,128.53,128.51,0.05261433]
[1740729551279,0.05987343,128.53,128.46,7.7927]
[1740729551580,5.8418,128.55,128.43,1.8699]
[1740729552083,13.6298,128.55,128.43,1.8699]
[1740729552580,0.05310386,128.5,128.48,7.84807144]
[1740729552776,13.6298,128.55,128.48,7.84807144]
[1740729552978,0.05261409,128.5,128.49,7.7911]
[1740729553276,0.05966421,128.51,128.43,1.8699]
[1740729553478,3.9205,128.55,128.43,196.8699]
[1740729553681,3.294e-05,128.48,128.46,0.05581948]
[1740729553881,3.9205,128.55,128.43,1.8699]
[1740729554480,3.9205,128.55,128.52,7.7889]
[1740729554684,3.9205,128.55,128.43,1.8699]
[1740729554883,3.97712168,128.55,128.52,0.05608139]
[1740729555182,11.708,128.55,128.43,1.8699]
[1740729555373,11.75879034,128.55,128.52,0.05441318]
[1740729555580,11.75879034,128.55,128.43,1.8699]
[1740729555581,11.76133088,128.55,128.48,0.05412217]
[1740729555881,11.708,128.55,128.43,196.8699]
[1740729556181,11.708,128.55,128.5,0.0599049]
[1740729556481,0.05906263,128.54,128.5,7.8503049]
[1740729557178,0.05906263,128.54,128.5,0.0599049]
[1740729558176,0.05906263,128.54,128.43,33.90737614]
[1740729558480,3.9205,128.55,128.46,7.7923]
[1740729558876,3.9205,128.55,128.43,33.90737614]
[1740729559082,7.7897,128.52,128.47,7.7921]
[1740729559281,0.04927038,128.5,128.48,0.05893577]
[1740729560180,0.04927038,128.5,128.43,32.03747614]
[1740729560375,0.04927038,128.5,128.44,7.7937]
[1740729560781,7.792,128.48,128.44,7.7937]
[1740729561088,1.9173,128.47,128.44,7.7937]
[1740729561477,1.96975802,128.47,128.44,7.85103723]
[1740729561786,1.96975802,128.47,128.44,0.05733723]
[1740729562687,9.76205802,128.47,128.44,0.05733723]
[1740729562987,1.96975802,128.47,128.42,7.7952]
[1740729563285,1.9173,128.47,128.42,7.7952]
[1740729563886,7.7933,128.46,128.42,7.7952]
[1740729564086,7.84755239,128.46,128.43,0.05009946]
[1740729565889,7.7936,128.45,128.43,0.05009946]
[1740729566090,0.05425239,128.46,128.34,82.31124233]
[1740729566289,7.7951,128.43,128.39,7.7968]
[1740729566486,1.9173,128.47,128.34,82.31124233]
[1740729566884,7.7951,128.43,128.39,7.7967]
[1740729567286,0.05698863,128.42,128.4,0.04940206]
[1740729567685,7.7944,128.44,128.4,0.04940206]
[1740729567886,0.05611776,128.42,128.4,7.84590206]
[1740729568183,0.05611776,128.42,128.4,0.04940206]
[1740729568585,0.05611776,128.42,128.41,7.7959]
[1740729570390,1.776e-05,128.42,128.41,7.7959]
[1740729577197,1.776e-05,128.42,128.41,9.7983]
[1740729577400,1.776e-05,128.42,128.41,13.6983]
[1740729583087,1.776e-05,128.42,128.41,9.7983]
[1740729586195,1.776e-05,128.42,128.41,13.6983]
[1740729586994,1.9426,128.53,128.52,7.7892]
[1740729587301,3.8576,128.56,128.47,13.78]
[1740729587900,3.8576,128.56,128.55,7.7874]
[1740729588500,0.05919136,128.57,128.54,0.05093731]
[1740729588707,2.0494,128.59,128.49,0.5156]
[1740729588902,0.05290295,128.57,128.54,0.05940256]
[1740729591907,0.05290295,128.57,128.49,7.7905]
[1740729592106,2.0494,128.59,128.49,7.7905]
[1740729592606,2.0494,128.59,128.45,32.03747614]
[1740729593002,0.05493538,128.53,128.45,32.03747614]
[1740729593207,7.788,128.54,128.48,7.7913]
[1740729593408,0.05611209,128.5,128.48,7.84283722]
[1740729594010,0.05611209,128.5,128.45,32.03747614]
[1740729594712,0.05611209,128.5,128.46,7.7924]
[1740729595207,0.05611209,128.5,128.47,0.05703461]
[1740729597109,0.05611209,128.5,128.49,7.7911]
[1740729598016,0.05611209,128.5,128.47,0.05703461]
[1740729598418,1.209e-05,128.5,128.47,13.83703461]
[1740729598615,1.209e-05,128.5,128.49,7.7911]
[1740729605624,1.209e-05,128.5,128.49,21.5711]
[1740729606823,1.209e-05,128.5,128.47,0.05703461]
[1740729607025,1.209e-05,128.5,128.39,146.86882308]
[1740729607224,1.9136,128.57,128.39,162.46232308]
[1740729607427,1.9136,128.57,128.54,7.788]
[1740729607624,1.9136,128.57,128.39,162.46232308]
[1740729607625,1.9136,128.57,128.46,13.78]
[1740729607825,1.9136,128.57,128.49,7.7909]
[1740729608129,1.9136,128.57,128.39,146.86882308]
[1740729608130,7.7909,128.5,128.39,146.86882308]
[1740729608327,3.8947,128.49,128.39,146.86882308]
[1740729608529,3.8947,128.49,128.39,133.08882308]
[1740729608725,3.8947,128.49,128.43,0.05049962]
[1740729608726,0.05485582,128.46,128.43,0.05049962]
[1740729609125,0.05485582,128.46,128.39,129.12072308]
[1740729609528,0.05485582,128.46,128.44,32.35998975]
[1740729609723,0.05485582,128.46,128.44,29.27918975]
[1740729610129,0.05485582,128.46,128.44,13.87618975]
[1740729610330,0.05485582,128.46,128.44,13.92911228]
[1740729610529,0.05485582,128.46,128.44,7.52611228]
[1740729610834,11.74785582,128.46,128.44,0.96091228]
[1740729611026,3.95485582,128.46,128.44,0.96091228]
[1740729611827,23.38,128.45,128.44,1.228e-05]
[1740729612032,23.38,128.45,128.43,50.01491552]
[1740729612235,3.9,128.45,128.43,50.01491552]
[1740729612623,3.9,128.45,128.34,50.17411552]
[1740729612828,0.05485582,128.46,128.34,50.17411552]
[1740729613128,0.04917616,128.41,128.39,0.0496942]
[1740729613531,15.7633,128.49,128.41,7.7959]
[1740729613731,15.7633,128.49,128.39,0.05029592]
[1740729613927,0.05684356,128.46,128.43,0.05089912]
[1740729614127,39.1433,128.49,128.43,0.05089912]
[1740729614434,0.04978387,128.47,128.43,0.05089912]
[1740729614835,27.32978387,128.47,128.43,0.05089912]
[1740729615032,7.7941,128.44,128.43,0.05089912]
[1740729615239,11.6941,128.44,128.43,0.05089912]
[1740729616536,11.6941,128.44,128.43,9.912e-05]
[1740729616732,35.0741,128.44,128.43,9.912e-05]
[1740729616940,7.798,128.38,128.32,215.20120513]
[1740729617238,37.16,128.42,128.29,5.12390114]
[1740729617439,23.38,128.38,128.29,5.12390114]
[1740729617737,23.38,128.41,128.29,5.12390114]
[1740729617941,1.55751109,128.41,128.3,7.8024]
[1740729618134,0.05266198,128.36,128.34,0.05398227]
[1740729618542,7.8001,128.35,128.34,0.05398227]
[1740729619042,11.7001,128.35,128.34,0.05398227]
[1740729619339,7.8026,128.3,128.29,5.12390114]
[1740729619736,11.7026,128.3,128.29,5.12390114]
[1740729619937,13.78,128.35,128.29,5.12390114]
[1740729620235,13.78,128.4,128.29,5.12390114]
[1740729620535,7.8019,128.32,128.31,0.05544296]
[1740729620847,190.0,128.38,128.19,1.9623]
[1740729621136,7.802,128.31,128.3,0.0536209]
[1740729621338,190.0,128.36,128.3,0.0536209]
[1740729621636,7.85986998,128.32,128.19,1.9623]
[1740729621843,0.05846998,128.32,128.19,1.9623]
[1740729622034,13.78,128.33,128.25,0.05121851]
[1740729622233,0.05252918,128.27,128.25,0.05121851]
[1740729622436,0.05252918,128.27,128.12,341.06072308]
[1740729622642,3.9,128.27,128.25,6.176e-05]
[1740729622843,191.39391655,128.31,128.25,6.176e-05]
[1740729622844,7.805,128.26,128.25,6.176e-05]
[1740729623036,190.0,128.3,128.16,2.0068]
[1740729623240,7.8067,128.24,128.16,2.0068]
[1740729623543,191.55896796,128.29,128.16,2.0068]
[1740729623743,191.39356304,128.28,128.13,3.8023]
[1740729624038,0.05710189,128.24,128.14,2.0522]
[1740729624444,190.0,128.28,128.14,2.0522]
[1740729624739,0.05376265,128.2,128.14,2.0522]
[1740729624940,6.265e-05,128.2,128.19,7.8087]
[1740729625840,6.265e-05,128.2,128.14,2.0522]
[1740729626236,6.265e-05,128.2,128.19,7.8093]
[1740729627938,6.265e-05,128.2,128.19,11.7093]
[1740729628943,6.265e-05,128.2,128.19,7.8093]
[1740729630447,6.265e-05,128.2,128.19,11.7093]
[1740729630848,6.265e-05,128.2,128.19,7.8093]
[1740729631042,6.265e-05,128.2,128.19,11.7093]
[1740729631239,6.265e-05,128.2,128.19,7.8093]
[1740729632546,6.265e-05,128.2,128.17,7.8104]
[1740729632938,6.265e-05,128.2,128.16,0.05979985]
[1740729633140,6.265e-05,128.2,128.16,7.87069985]
[1740729633346,6.265e-05,128.2,128.16,0.05979985]
[1740729633546,6.265e-05,128.2,128.17,7.8104]
[1740729633944,6.265e-05,128.2,128.16,0.05979985]
[1740729634648,6.265e-05,128.2,128.17,7.8101]
[1740729635444,6.265e-05,128.2,128.18,7.8097]
[1740729635650,6.265e-05,128.2,128.16,0.05979985]
[1740729636148,6.265e-05,128.2,128.19,7.8093]
[1740729636549,6.265e-05,128.2,128.17,7.8101]
[1740729636750,6.265e-05,128.2,128.16,0.05979985]
[1740729637449,6.265e-05,128.2,128.16,13.83979985]
[1740729637650,6.265e-05,128.2,128.19,7.8093]
[1740729638750,6.265e-05,128.2,128.18,7.8097]
[1740729638950,6.265e-05,128.2,128.16,13.83979985]
[1740729639550,6.265e-05,128.2,128.17,7.8101]
[1740729640444,6.265e-05,128.2,128.16,0.05979985]
[1740729640846,7.8104,128.18,128.16,0.05979985]
[1740729641242,6.265e-05,128.2,128.16,0.05979985]
[1740729641657,7.8097,128.19,128.16,0.05979985]
[1740729642863,7.8099,128.18,128.16,0.05979985]
[1740729643353,6.265e-05,128.2,128.16,0.05979985]
[1740729643962,7.8095,128.19,128.16,0.05979985]
[1740729646253,7.81,128.18,128.16,0.05979985]
[1740729646455,6.265e-05,128.2,128.16,0.05979985]
[1740729646850,7.8105,128.17,128.16,0.05979985]
[1740729647659,6.265e-05,128.2,128.16,0.05979985]
[1740729648357,7.8103,128.18,128.16,0.05979985]
[1740729648657,6.265e-05,128.2,128.16,0.05979985]
[1740729649061,7.8103,128.18,128.16,0.05979985]
[1740729649360,6.265e-05,128.2,128.16,0.05979985]
[1740729650755,7.80916265,128.2,128.16,7.87069985]
[1740729650955,6.265e-05,128.2,128.16,0.05979985]
[1740729651357,6.265e-05,128.2,128.19,7.8093]
[1740729653051,6.265e-05,128.2,128.19,11.7093]
[1740729654161,10.71641903,128.34,128.29,7.8032]
[1740729654563,10.71641903,128.34,128.25,13.78]
[1740729654760,10.71641903,128.34,128.26,5.7452]
[1740729655257,1.46051903,128.34,128.31,7.8019]
[1740729655457,7.7982,128.38,128.31,7.8019]
[1740729655862,0.05223123,128.34,128.26,5.7452]
[1740729656061,0.05223123,128.34,128.33,0.05691373]
[1740729656358,7.7982,128.38,128.26,5.7452]
[1740729656552,0.05735796,128.35,128.32,0.05365564]
[1740729656958,3.7534,128.42,128.32,0.05365564]
[1740729657261,3.7534,128.42,128.26,200.7452]
[1740729657464,7.7964,128.41,128.33,7.8006]
[1740729657961,3.7534,128.42,128.33,7.8006]
[1740729657962,7.7968,128.4,128.33,7.8006]
[1740729658158,0.05925014,128.38,128.36,0.05177925]
[1740729658554,7.7948,128.43,128.36,0.05177925]
[1740729658755,195.6681,128.49,128.32,13.78]
[1740729658954,5.6681,128.49,128.32,13.78]
[1740729659157,7.7945,128.44,128.37,7.7979]
[1740729659557,5.6681,128.49,128.32,13.78]
[1740729659764,0.05489846,128.42,128.39,0.05475201]
[1740729660165,5.6681,128.49,128.32,13.78]
[1740729660359,0.05739201,128.42,128.39,0.05906869]
[1740729660761,5.6681,128.49,128.33,1.9522]
[1740729660966,0.0595854,128.42,128.39,0.05381157]
[1740729661366,5.6681,128.49,128.33,1.9522]
[1740729661568,0.05939486,128.42,128.39,0.05634012]
[1740729661963,7.22464136,128.49,128.33,1.9522]
[1740729662165,0.04915204,128.42,128.39,0.05369139]
[1740729662365,7.7965,128.4,128.39,0.05369139]
[1740729662564,7.7965,128.4,128.34,1.8806]
[1740729662769,0.05930019,128.41,128.38,0.05809164]
[1740729662968,7.7974,128.39,128.38,0.05809164]
[1740729663268,0.05025211,128.41,128.3,2.0073]
[1740729663470,7.7979,128.38,128.3,4.0238]
[1740729663666,190.0,128.45,128.31,1.9059]
[1740729663863,212.08,128.47,128.31,1.9059]
[1740729664060,7.7954,128.42,128.35,7.7994]
[1740729664468,0.05168506,128.4,128.38,0.04965897]
[1740729665969,5.30994136,128.49,128.38,0.04965897]
[1740729666267,5.30994136,128.49,128.34,13.78]
[1740729667068,5.30994136,128.49,128.41,7.7956]
[1740729667267,0.05549985,128.43,128.4,0.05698762]
[1740729667466,5.30994136,128.49,128.34,13.78]
[1740729667667,0.05979656,128.43,128.4,0.05314845]
[1740729668062,5.30994136,128.49,128.34,13.78]
[1740729668264,0.05106838,128.43,128.4,0.05565086]
[1740729668469,1.55654136,128.49,128.4,0.05565086]
[1740729668771,7.7921,128.48,128.41,7.7958]
[1740729669672,0.04998097,128.46,128.43,0.05749318]
[1740729670172,7.7948,128.43,128.38,7.7976]
[1740729670371,0.05916564,128.46,128.34,13.76]
[1740729670571,7.7943,128.44,128.43,0.05237226]
[1740729670772,0.05157176,128.41,128.38,7.7973]
[1740729671074,1.9406,128.48,128.38,7.7973]
[1740729671268,0.05922356,128.41,128.39,7.7971]
[1740729671476,1.9406,128.48,128.39,7.7971]
[1740729671668,0.05364521,128.41,128.39,7.8528463]
[1740729672074,1.9406,128.48,128.39,7.7971]
[1740729672273,0.0548315,128.41,128.39,7.85026099]
[1740729672474,1.9406,128.48,128.39,7.7971]
[1740729672770,0.05735715,128.41,128.39,7.7971]
[1740729672973,7.7946,128.44,128.39,7.7971]
[1740729673176,7.7946,128.44,128.42,0.05839577]
[1740729673479,1.9406,128.48,128.33,13.76]
[1740729673774,0.05390665,128.44,128.43,7.7943]
[1740729674174,1.55654136,128.49,128.33,13.76]
[1740729674365,1.55654136,128.49,128.42,0.05127461]
[1740729675379,1.55654136,128.49,128.48,7.7917]
[1740729675579,13.76,128.6,128.42,0.05127461]
[1740729675773,241.147,128.63,128.52,7.7892]
[1740729675975,1.3911906,128.62,128.47,13.76]
[1740729676179,231.527,128.63,128.48,3.9322]
[1740729676479,7.7844,128.6,128.53,7.7882]
[1740729676684,7.7844,128.6,128.48,3.9322]
[1740729676981,0.05585307,128.58,128.55,0.05349243]
[1740729677180,217.767,128.63,128.55,0.05349243]
[1740729677377,0.05492287,128.58,128.55,0.05349243]
[1740729677581,0.05492287,128.58,128.48,3.9322]
[1740729677783,0.05492287,128.58,128.55,0.05189815]
[1740729677978,85.67642294,128.66,128.48,3.9322]
[1740729678183,0.05938114,128.58,128.55,0.05288753]
[1740729678680,6.749e-05,128.58,128.55,3.88]
[1740729678878,85.67642294,128.66,128.56,3.9711]
[1740729679278,85.67642294,128.66,128.61,7.7833]
[1740729679578,85.67642294,128.66,128.56,3.9711]
[1740729679975,2.168e-05,128.62,128.59,0.05214701]
[1740729680180,2.168e-05,128.62,128.59,195.05214701]
[1740729680387,22.99241642,128.65,128.59,195.05214701]
[1740729680587,85.67642294,128.66,128.59,195.05214701]
[1740729681376,84.26822294,128.66,128.59,195.05214701]
[1740729681685,79.91418844,128.66,128.6,1.42952899]
[1740729681884,4.034e-05,128.66,128.61,13.74]
[1740729682085,116.49787475,128.67,128.62,1.42952899]
[1740729682282,116.49787475,128.67,128.66,7.7808]
[1740729682783,116.49787475,128.67,128.66,3.88]
[1740729682985,116.49787475,128.67,128.65,0.05634593]
[1740729683986,0.05612148,128.68,128.65,0.05634593]
[1740729686286,0.05612148,128.68,128.65,3.93634593]
[1740729686588,0.05612148,128.68,128.66,7.7803]
[1740729686785,0.05612148,128.68,128.65,3.93634593]
[1740729686987,0.05612148,128.68,128.65,0.05634593]
[1740729687289,0.05612148,128.68,128.67,7.7802]
[1740729687790,0.05612148,128.68,128.67,11.6602]
[1740729688491,2.148e-05,128.68,128.67,11.6602]
[1740729689588,2.148e-05,128.68,128.65,0.05634593]
[1740729689788,2.148e-05,128.68,128.65,3.93634593]
[1740729690084,2.148e-05,128.68,128.65,7.83724593]
[1740729690291,2.148e-05,128.68,128.65,0.05634593]
[1740729690684,2.148e-05,128.68,128.65,13.77634593]
[1740729691796,2.148e-05,128.68,128.65,0.05634593]
[1740729691987,2.148e-05,128.68,128.57,1.4298381]
[1740729692487,3.9274,128.71,128.57,1.4298381]
[1740729692694,7.7796,128.68,128.57,1.4298381]
[1740729692896,7.7796,128.68,128.59,7.7845]
[1740729693289,0.05754958,128.65,128.62,0.05325315]
[1740729693685,3.9274,128.71,128.57,1.42990353]
[1740729693890,0.05517969,128.65,128.62,7.8423897]
[1740729694392,3.9274,128.71,128.62,13.72]
[1740729694594,0.04938003,128.65,128.62,13.77484823]
[1740729694793,3.9274,128.71,128.62,13.77484823]